bitfinex-derivatives/quotes_SOLF0:USTF0_20250929
["timestamp","ask_amount","ask_price","bid_price","bid_amount"]
[1759125410868,4.3003,209.21,209.18,5.35608507]
[1759125411169,7.73,209.2,209.18,5.35608507]
[1759125411870,4.2998,209.23,209.19,7.61]
[1759125412077,7.73,209.22,209.19,7.61]
[1759125412375,7.73,209.24,209.18,5.35608507]
[1759125413077,7.73,209.24,209.19,5.35608507]
[1759125413679,7.73,209.21,209.19,5.35608507]
[1759125413974,7.73,209.21,209.19,7.61]
[1759125415181,7.73,209.21,209.19,12.96608507]
[1759125418694,12.0001,209.22,209.19,12.96608507]
[1759125420598,7.7,209.21,209.19,12.96608507]
[1759125420893,12.0001,209.22,209.19,12.96608507]
[1759125423100,12.0001,209.22,209.2,7.67]
[1759125427200,4.3001,209.22,209.2,7.67]
[1759125428202,7.7,209.24,209.19,5.35608507]
[1759125428497,7.7,209.24,209.2,5.35608507]
[1759125428905,7.7,209.24,209.21,7.67]
[1759125429403,7.7,209.24,209.2,5.35608507]
[1759125429601,4.2995,209.25,209.21,7.67]
[1759125429901,4.2995,209.25,209.2,5.35608507]
[1759125430099,5.28676293,209.27,209.21,5.35608507]
[1759125430299,12.98676293,209.27,209.21,5.35608507]
[1759125430503,12.98676293,209.27,209.21,6.75926105]
[1759125430704,12.98676293,209.27,209.22,7.67]
[1759125431001,5.28676293,209.27,209.23,7.67]
[1759125431206,7.7,209.26,209.23,7.67]
[1759125431799,5.28676293,209.27,209.23,7.67]
[1759125432098,7.7,209.26,209.23,7.67]
[1759125432999,5.28676293,209.27,209.23,7.67]
[1759125433194,7.7,209.26,209.23,7.67]
[1759125440210,7.95,209.26,209.23,7.67]
[1759125442511,4.2993,209.26,209.23,7.67]
[1759125442711,7.95,209.25,209.23,7.67]
[1759125446710,7.95,209.25,209.22,5.35608507]
[1759125446915,7.95,209.25,209.23,7.23]
[1759125447712,4.2993,209.26,209.23,7.23]
[1759125447914,4.2993,209.26,209.22,5.35608507]
[1759125448110,12.1793,209.26,209.23,7.23]
[1759125449412,12.1793,209.26,209.22,5.35608507]
[1759125449612,12.1793,209.26,209.23,7.23]
[1759125449807,12.1793,209.26,209.22,5.35608507]
[1759125450014,12.1793,209.26,209.24,7.23]
[1759125451819,7.88,209.25,209.24,7.23]
[1759125455020,4.2995,209.24,209.22,5.35608507]
[1759125455227,4.2995,209.24,209.2,5.35608507]
[1759125455813,7.88,209.23,209.2,5.35608507]
[1759125456221,4.2995,209.24,209.2,5.35608507]
[1759125456521,7.88,209.23,209.2,12.58608507]
[1759125457129,7.88,209.22,209.2,12.58608507]
[1759125458620,7.88,209.22,209.2,7.23]
[1759125458820,7.88,209.22,209.2,12.58608507]
[1759125459018,7.88,209.22,209.2,7.23]
[1759125460531,7.88,209.22,209.19,12.58608507]
[1759125462929,7.88,209.22,209.2,7.23]
[1759125464228,7.88,209.22,209.2,12.58608507]
[1759125464423,7.88,209.22,209.2,7.23]
[1759125465733,7.88,209.21,209.19,5.35608507]
[1759125465927,7.88,209.25,209.19,5.35608507]
[1759125467627,4.3003,209.21,209.19,5.35608507]
[1759125467828,12.1803,209.21,209.19,5.35608507]
[1759125468632,12.1803,209.21,209.19,12.58608507]
[1759125471435,12.1803,209.21,209.19,5.35608507]
[1759125471641,12.1803,209.21,209.2,7.23]
[1759125471940,12.1803,209.21,209.19,5.35608507]
[1759125472146,12.1803,209.21,209.19,12.58608507]
[1759125473943,4.3003,209.21,209.19,5.35608507]
[1759125474148,7.26,209.2,209.18,5.35608507]
[1759125474640,7.26,209.2,209.18,12.78608507]
[1759125478854,7.26,209.2,209.19,7.43]
[1759125479042,11.5603,209.21,209.19,7.43]
[1759125479247,4.3003,209.21,209.19,5.35608507]
[1759125479450,4.3003,209.21,209.19,12.78608507]
[1759125479847,4.3003,209.21,209.19,5.35608507]
[1759125480048,4.3003,209.21,209.2,7.43]
[1759125480248,11.5603,209.21,209.19,5.35608507]
[1759125480555,4.3003,209.21,209.18,5.35608507]
[1759125480852,7.26,209.2,209.18,5.35608507]
[1759125481552,7.26,209.2,209.18,12.78608507]
[1759125482356,4.3003,209.21,209.19,7.43]
[1759125482555,4.3003,209.21,209.2,7.43]
[1759125482852,4.3003,209.21,209.19,5.35608507]
[1759125482853,11.5603,209.21,209.19,5.35608507]
[1759125483154,11.5603,209.21,209.18,12.78608507]
[1759125483549,4.3003,209.21,209.18,12.78608507]
[1759125483849,7.26,209.19,209.18,5.35608507]
[1759125484249,7.26,209.23,209.17,5.35608507]
[1759125484545,74.1468,209.23,209.16,5.35608507]
[1759125484750,66.8844,209.24,209.16,5.35608507]
[1759125484751,66.8886,209.22,209.16,5.35608507]
[1759125484952,7.26,209.21,209.16,5.35608507]
[1759125485546,4.3009,209.18,209.16,5.35608507]
[1759125485747,7.26,209.23,209.17,12.78608507]
[1759125486364,11.5607,209.19,209.17,12.78608507]
[1759125486656,7.26,209.18,209.17,5.35608507]
[1759125487057,7.26,209.18,209.16,12.78608507]
[1759125490763,4.3007,209.19,209.17,7.43]
[1759125490962,4.3007,209.19,209.17,12.78608507]
[1759125491162,4.3007,209.19,209.18,7.43]
[1759125496567,4.3002,209.21,209.17,5.35608507]
[1759125496867,4.3002,209.21,209.19,7.91]
[1759125497070,4.3002,209.21,209.18,5.35608507]
[1759125497268,4.3002,209.21,209.19,7.91]
[1759125497468,4.3002,209.21,209.18,5.35608507]
[1759125497673,4.3002,209.21,209.19,7.91]
[1759125498367,4.3002,209.21,209.19,13.26608507]
[1759125499672,12.1602,209.21,209.19,13.26608507]
[1759125500975,4.3002,209.21,209.2,7.91]
[1759125506476,12.1802,209.21,209.19,5.35608507]
[1759125507978,4.2998,209.23,209.2,7.38]
[1759125508282,7.88,209.23,209.2,7.38]
[1759125508470,7.88,209.23,209.19,5.35608507]
[1759125508873,7.88,209.23,209.2,7.38]
[1759125509074,12.1799,209.23,209.2,7.38]
[1759125510376,12.1799,209.23,209.2,12.73608507]
[1759125511183,12.1801,209.22,209.2,7.38]
[1759125516287,12.1801,209.22,209.2,12.73608507]
[1759125516489,12.1801,209.22,209.2,7.38]
[1759125516885,12.1801,209.22,209.2,12.73608507]
[1759125523000,7.88,209.21,209.2,12.73608507]
[1759125523595,7.88,209.21,209.2,7.38]
[1759125524801,12.1801,209.22,209.2,7.38]
[1759125527506,4.3001,209.22,209.2,7.38]
[1759125527707,7.88,209.21,209.2,7.38]
[1759125528306,12.1801,209.22,209.2,7.38]
[1759125528706,12.1801,209.22,209.2,12.73608507]
[1759125531507,12.1801,209.22,209.2,7.38]
[1759125533111,12.1801,209.22,209.2,12.73608507]
[1759125533506,7.88,209.21,209.19,5.35608507]
[1759125533807,7.88,209.21,209.19,7.38]
[1759125535210,7.88,209.21,209.19,12.73608507]
[1759125535408,7.88,209.21,209.19,7.38]
[1759125535613,7.88,209.21,209.19,12.73608507]
[1759125536713,7.88,209.21,209.19,7.38]
[1759125537806,4.3003,209.21,209.18,5.35608507]
[1759125538107,4.3003,209.21,209.16,9.37373166]
[1759125538108,4.3003,209.21,209.17,5.35608507]
[1759125538315,7.93,209.2,209.17,5.35608507]
[1759125538616,4.3003,209.21,209.17,13.04608507]
[1759125539007,7.93,209.2,209.17,13.04608507]
[1759125542114,12.2305,209.2,209.17,13.04608507]
[1759125542819,7.93,209.18,209.17,5.35608507]
[1759125543320,7.93,209.18,209.16,13.04608507]
[1759125544813,7.93,209.2,209.16,5.35608507]
[1759125545018,7.93,209.2,209.17,7.69]
[1759125545319,7.93,209.2,209.16,5.35608507]
[1759125545513,7.93,209.2,209.17,7.69]
[1759125546014,7.93,209.2,209.16,5.35608507]
[1759125546219,7.93,209.2,209.17,7.69]
[1759125546416,7.93,209.2,209.16,5.35608507]
[1759125546616,12.2306,209.2,209.17,7.69]
[1759125546913,12.2306,209.2,209.16,5.35608507]
[1759125547216,7.93,209.19,209.17,7.69]
[1759125549510,4.3007,209.19,209.15,5.35608507]
[1759125549913,7.93,209.18,209.15,13.04608507]
[1759125550517,7.93,209.18,209.16,7.69]
[1759125551016,4.3007,209.19,209.13,5.35608507]
[1759125551017,7.93,209.19,209.13,5.35608507]
[1759125551206,66.8989,209.19,209.12,13.04608507]
[1759125551406,7.93,209.18,209.12,13.04608507]
[1759125552015,66.8989,209.19,209.12,13.04608507]
[1759125552414,7.93,209.18,209.12,7.69]
[1759125552718,12.0514,209.15,209.12,7.69]
[1759125554320,4.3017,209.14,209.12,7.69]
[1759125557618,4.3017,209.14,209.12,7.72]
[1759125557821,4.3017,209.14,209.11,6.75935783]
[1759125558022,4.3017,209.14,209.12,7.72]
[1759125558722,4.3017,209.14,209.11,6.75935783]
[1759125558913,4.3017,209.14,209.12,7.72]
[1759125561120,4.3017,209.14,209.11,7.72]
[1759125561723,4.3017,209.14,209.1,6.75935783]
[1759125562224,4.3017,209.14,209.11,7.72]
[1759125562418,4.3017,209.14,209.1,6.75935783]
[1759125563025,4.3017,209.14,209.11,7.72]
[1759125563422,7.75,209.13,209.09,5.35608507]
[1759125563619,66.9152,209.14,209.07,19.66948497]
[1759125563819,7.43,209.13,209.07,19.66948497]
[1759125564221,66.9152,209.14,209.07,19.66948497]
[1759125564625,11.7326,209.1,209.07,26.95948497]
[1759125565826,11.7326,209.1,209.07,19.66948497]
[1759125566022,4.3028,209.09,209.07,26.95948497]
[1759125566219,11.7328,209.09,209.07,21.6033999]
[1759125567333,11.7328,209.09,209.08,7.29]
[1759125573634,4.3028,209.09,209.08,7.29]
[1759125578238,4.303,209.08,209.06,7.29]
[1759125578439,7.43,209.07,209.05,7.29]
[1759125578739,11.733,209.08,209.05,7.29]
[1759125579131,4.3032,209.07,209.05,7.29]
[1759125579433,4.3032,209.07,209.04,19.45061721]
[1759125579739,4.3032,209.07,209.04,5.35608507]
[1759125580137,4.3032,209.07,209.05,7.29]
[1759125581440,4.3032,209.07,209.04,5.35608507]
[1759125582234,4.3032,209.07,209.05,7.29]
[1759125582435,4.3032,209.07,209.04,5.35608507]
[1759125584534,4.3032,209.07,209.05,7.29]
[1759125584939,4.3032,209.07,209.04,19.96272757]
[1759125585138,4.3032,209.07,209.05,7.29]
[1759125586037,4.3035,209.05,209.03,5.35608507]
[1759125586241,11.7335,209.05,209.02,128.40608507]
[1759125586541,11.7335,209.05,209.03,5.35608507]
[1759125586738,11.7335,209.05,209.03,19.64640559]
[1759125586931,11.7335,209.05,209.03,5.35608507]
[1759125587137,11.7335,209.05,209.03,12.64608507]
[1759125587741,4.3035,209.05,209.04,7.29]
[1759125588640,4.3031,209.07,209.04,7.29]
[1759125588943,11.7331,209.07,209.04,7.29]
[1759125589339,4.3031,209.07,209.04,7.29]
[1759125589543,7.43,209.06,209.04,7.29]
[1759125590445,4.3031,209.07,209.03,5.35608507]
[1759125590646,11.7331,209.07,209.04,7.29]
[1759125590843,11.7331,209.07,209.03,5.35608507]
[1759125591046,4.3027,209.09,209.03,5.35608507]
[1759125591248,4.3027,209.09,209.04,7.29]
[1759125591544,4.3027,209.09,209.05,7.29]
[1759125591744,4.3027,209.09,209.05,115.76]
[1759125591950,4.3027,209.09,209.06,7.29]
[1759125592152,11.7322,209.11,209.06,7.29]
[1759125592355,11.7322,209.11,209.05,5.35608507]
[1759125593049,11.7322,209.11,209.06,7.29]
[1759125593251,11.7322,209.11,209.06,39.44]
[1759125594059,11.7322,209.11,209.06,44.79608507]
[1759125594258,11.7322,209.11,209.07,7.36]
[1759125594760,11.7322,209.11,209.06,44.79608507]
[1759125594954,11.7322,209.11,209.08,7.36]
[1759125597056,4.3022,209.11,209.08,7.36]
[1759125597261,7.61,209.1,209.08,7.36]
[1759125597862,11.9126,209.1,209.08,7.36]
[1759125598160,7.61,209.09,209.07,7.36]
[1759125598461,7.61,209.08,209.06,5.35608507]
[1759125600363,7.61,209.08,209.06,12.71608507]
[1759125601361,11.9131,209.07,209.05,5.35608507]
[1759125602365,7.61,209.06,209.05,5.35608507]
[1759125602661,7.61,209.08,209.06,7.36]
[1759125602865,7.61,209.08,209.06,12.72290659]
[1759125603057,4.3027,209.09,209.06,5.36290659]
[1759125603661,4.3027,209.09,209.07,7.36]
[1759125603850,11.9127,209.09,209.07,7.36]
[1759125604265,11.9127,209.09,209.07,12.72290659]
[1759125604466,4.3031,209.07,209.06,5.36290659]
[1759125604663,11.9131,209.07,209.06,5.36290659]
[1759125605164,4.3031,209.07,209.06,5.36290659]
[1759125605363,4.3031,209.07,209.06,12.72290659]
[1759125605559,4.3027,209.09,209.04,7.9704589]
[1759125605757,4.3027,209.09,209.07,5.36592946]
[1759125605956,74.5267,209.14,209.08,7.36]
[1759125606152,74.5267,209.14,209.08,12.72592946]
[1759125606564,11.9118,209.14,209.1,5.36592946]
[1759125606764,7.61,209.13,209.11,7.36]
[1759125606967,11.912,209.13,209.11,7.36]
[1759125607260,66.9062,209.17,209.1,5.36592946]
[1759125607459,7.61,209.16,209.1,5.36592946]
[1759125607660,7.61,209.18,209.11,7.36]
[1759125607862,7.61,209.18,209.11,12.72592946]
[1759125608057,66.8931,209.21,209.11,7.36]
[1759125608058,7.61,209.2,209.11,7.36]
[1759125608259,66.8931,209.21,209.11,90.1]
[1759125608465,66.8931,209.21,209.11,95.46592946]
[1759125608658,11.9114,209.16,209.12,7.36]
[1759125609069,11.9114,209.16,209.11,121.08592946]
[1759125609270,7.61,209.15,209.12,7.36]
[1759125609866,11.9114,209.16,209.12,7.36]
[1759125610062,7.61,209.14,209.11,121.08592946]
[1759125610367,74.5256,209.14,209.09,5.36592946]
[1759125610562,4.3028,209.09,209.07,5.36592946]
[1759125610759,7.61,209.08,209.06,5.36592946]
[1759125611365,11.9123,209.11,209.08,7.36]
[1759125612363,66.9055,209.17,209.09,12.72592946]
[1759125612364,7.61,209.12,209.09,12.72592946]
[1759125612667,7.61,209.12,209.09,7.36]
[1759125613563,77.69562001,209.19,209.09,5.36592946]
[1759125613564,12.0915,209.15,209.09,5.36592946]
[1759125613767,12.0915,209.15,209.11,8.0]
[1759125613967,7.79,209.14,209.11,8.0]
[1759125616666,4.3015,209.15,209.1,13.36592946]
[1759125616862,4.3015,209.15,209.11,8.0]
[1759125617064,12.0915,209.15,209.11,8.0]
[1759125619272,74.6922,209.18,209.1,5.36592946]
[1759125619464,7.79,209.16,209.06,13.36592946]
[1759125619765,66.9022,209.18,209.06,13.36592946]
[1759125619766,7.79,209.11,209.06,13.36592946]
[1759125619960,7.79,209.12,209.05,5.36592946]
[1759125620159,7.79,209.12,209.04,5.36592946]
[1759125620967,7.79,209.12,209.03,5.36592946]
[1759125621166,7.79,209.12,209.04,5.36592946]
[1759125621569,4.3028,209.09,209.03,5.36592946]
[1759125621769,12.0928,209.09,209.03,5.36592946]
[1759125622374,12.0928,209.09,209.04,5.36592946]
[1759125622576,4.3028,209.09,209.03,5.36592946]
[1759125622775,12.0928,209.09,209.03,5.36592946]
[1759125624174,7.79,209.09,209.03,5.36592946]
[1759125625172,7.79,209.09,209.03,13.23592946]
[1759125625977,7.8,209.12,209.05,7.87]
[1759125626278,7.8,209.12,209.05,13.23592946]
[1759125627187,7.8,209.12,209.05,115.75592946]
[1759125627375,12.1022,209.12,209.05,115.75592946]
[1759125627571,7.8,209.12,209.06,5.36592946]
[1759125627880,7.8,209.12,209.06,128.97592946]
[1759125628073,7.8,209.12,209.06,13.23592946]
[1759125628277,7.8,209.12,209.06,110.03592946]
[1759125628579,66.9024,209.18,209.06,110.03592946]
[1759125628580,7.8,209.16,209.1,7.87]
[1759125629674,12.1012,209.16,209.1,7.87]
[1759125637082,4.3008,209.18,209.1,7.87]
[1759125637288,1.40463804,209.13,209.07,4.74674794]
[1759125637485,7.8,209.12,209.04,7.87]
[1759125638083,4.3026,209.1,209.04,7.87]
[1759125640693,7.8,209.08,209.04,7.87]
[1759125643787,7.8,209.08,209.02,131.00498334]
[1759125643986,7.8,209.08,209.03,7.87]
[1759125644192,4.3023,209.11,209.05,7.87]
[1759125644789,4.3023,209.11,209.05,124.29]
[1759125645693,4.3023,209.11,209.05,7.87]
[1759125645894,12.1023,209.11,209.06,116.42]
[1759125646089,7.8,209.15,209.09,1.40463804]
[1759125646298,7.8,209.15,209.09,9.27463804]
[1759125646697,7.8,209.15,209.09,125.81463804]
[1759125647597,7.8,209.15,209.09,124.41]
[1759125649902,7.8,209.15,209.09,9.27463804]
[1759125650090,7.8,209.15,209.11,7.87]
[1759125652001,4.3014,209.16,209.11,7.87]
[1759125652202,7.8,209.15,209.11,7.87]
[1759125652802,7.8,209.15,209.1,7.87]
[1759125653004,7.8,209.15,209.11,7.87]
[1759125654404,4.3014,209.16,209.11,7.87]
[1759125654600,7.77,209.15,209.1,116.42]
[1759125655104,7.77,209.15,209.11,7.98]
[1759125655503,7.77,209.15,209.11,97.26]
[1759125655806,7.77,209.15,209.12,7.98]
[1759125657701,4.3007,209.19,209.11,116.4]
[1759125657903,12.0707,209.19,209.12,125.74463804]
[1759125658103,12.0707,209.19,209.13,124.38]
[1759125660114,66.9188,209.13,209.07,7.9704589]
[1759125660303,1.40463804,209.1,209.02,14.66331762]
[1759125660500,1.40463804,209.08,209.01,8.81238653]
[1759125660807,7.77,209.07,209.01,8.81238653]
[1759125661706,7.77,209.05,209.01,8.81238653]
[1759125664211,7.77,209.05,209.01,7.98]
[1759125665010,4.3039,209.03,208.98,348.73252593]
[1759125665203,7.77,209.03,208.95,69.98]
[1759125665508,7.77,209.03,208.86,358.71216735]
[1759125665509,7.77,209.01,208.87,7.98]
[1759125665705,1.40463804,209.02,208.91,1.40463804]
[1759125665911,7.77,209.01,208.91,9.38463804]
[1759125666111,1.40463804,209.02,208.92,116.7]
[1759125666306,7.77,209.01,208.92,116.7]
[1759125666608,12.0745,209.01,208.92,116.7]
[1759125667008,7.77,209.01,208.92,4.3059]
[1759125667213,7.77,209.01,208.93,88.90463804]
[1759125668309,7.77,209.01,208.94,116.68]
[1759125668706,7.77,209.01,208.94,7.98]
[1759125669014,7.77,209.01,208.94,124.66]
[1759125670709,7.77,209.01,208.95,1.40463804]
[1759125671209,7.77,209.01,208.95,124.66]
[1759125672012,7.77,209.01,208.95,124.64]
[1759125672510,7.77,209.01,208.95,7.98]
[1759125674717,7.77,209.01,208.95,124.6]
[1759125675418,7.77,209.01,208.95,126.00463804]
[1759125676317,7.77,209.01,208.95,9.38463804]
[1759125676921,7.77,209.01,208.95,125.98463804]
[1759125677514,7.77,209.01,208.95,9.38463804]
[1759125677821,7.77,209.01,208.95,125.98463804]
[1759125679023,7.77,209.01,208.95,125.96463804]
[1759125680417,7.77,209.01,208.95,124.56]
[1759125682128,7.77,209.01,208.95,7.98]
[1759125682324,1.40463804,208.99,208.93,14.21534254]
[1759125682517,9.16463804,208.99,208.92,124.55]
[1759125683125,9.16463804,208.99,208.92,138.6339941]
[1759125683725,4.3051,208.98,208.92,138.6339941]
[1759125684429,4.3053,208.97,208.92,22.0939941]
[1759125684625,11.6353,208.97,208.93,7.66]
[1759125685028,11.6353,208.97,208.92,130.6239941]
[1759125685720,11.6353,208.97,208.93,7.66]
[1759125685925,11.6353,208.97,208.92,130.6239941]
[1759125687121,11.6353,208.97,208.93,7.66]
[1759125687624,11.6353,208.97,208.92,130.6239941]
[1759125688030,11.6353,208.97,208.93,7.66]
[1759125688222,11.6353,208.97,208.92,130.6239941]
[1759125688424,11.6353,208.97,208.93,7.66]
[1759125688620,11.6353,208.97,208.92,130.6239941]
[1759125688921,11.6353,208.97,208.93,7.66]
[1759125689435,4.3053,208.97,208.93,7.66]
[1759125689728,4.3053,208.97,208.92,116.48]
[1759125689929,11.6353,208.97,208.93,7.66]
[1759125690127,11.6353,208.97,208.92,116.48]
[1759125690929,11.6353,208.97,208.93,7.66]
[1759125691129,11.6353,208.97,208.92,116.48]
[1759125691330,11.6353,208.97,208.93,7.66]
[1759125691939,11.6353,208.97,208.92,130.98738942]
[1759125692328,11.6353,208.97,208.93,7.66]
[1759125692636,11.6353,208.97,208.92,130.98738942]
[1759125693027,11.6353,208.97,208.93,7.66]
[1759125694234,11.6353,208.97,208.92,130.94738942]
[1759125694537,11.6353,208.97,208.93,7.66]
[1759125694730,11.6353,208.97,208.92,130.94738942]
[1759125694931,11.6353,208.97,208.93,7.66]
[1759125695138,11.6353,208.97,208.92,130.94738942]
[1759125695825,11.6353,208.97,208.93,7.66]
[1759125696136,11.6353,208.97,208.92,130.94738942]
[1759125696332,11.6353,208.97,208.93,7.66]
[1759125696537,11.6354,208.96,208.93,7.66]
[1759125696734,7.33,208.97,208.92,14.50738942]
[1759125697039,7.33,208.97,208.91,116.42]
[1759125697535,66.966,208.98,208.91,116.42]
[1759125697840,7.33,208.93,208.91,116.42]
[1759125698236,7.33,208.93,208.91,124.08]
[1759125698632,66.9707,208.97,208.87,7.66]
[1759125698839,7.33,208.94,208.88,116.42]
[1759125699032,7.33,208.94,208.87,124.1]
[1759125699237,4.3069,208.89,208.87,7.66]
[1759125706549,11.6369,208.89,208.87,7.66]
[1759125707448,7.33,208.87,208.85,7.66]
[1759125711144,4.3073,208.87,208.82,7.66]
[1759125711350,11.6373,208.87,208.82,116.4]
[1759125712239,4.3068,208.89,208.83,7.66]
[1759125712639,4.3068,208.89,208.83,116.42]
[1759125712843,4.3068,208.89,208.84,7.66]
[1759125713046,11.6364,208.91,208.84,7.66]
[1759125713245,11.6364,208.91,208.84,124.1]
[1759125713440,11.6364,208.91,208.85,7.66]
[1759125716255,11.6364,208.91,208.85,124.06]
[1759125718054,11.6364,208.91,208.85,116.4]
[1759125718757,4.306,208.93,208.86,7.46]
[1759125718951,4.306,208.93,208.87,7.46]
[1759125720862,4.3063,208.92,208.86,116.38]
[1759125721058,12.1163,208.92,208.86,123.84]
[1759125723156,12.1163,208.92,208.86,7.46]
[1759125723357,7.81,208.94,208.86,7.46]
[1759125724266,12.1171,208.88,208.84,21.79490728]
[1759125724461,7.81,208.87,208.84,7.46]
[1759125724861,7.81,208.87,208.82,116.4]
[1759125725662,12.1173,208.87,208.82,116.4]
[1759125726367,12.1173,208.87,208.83,7.46]
[1759125726560,12.1173,208.87,208.83,14.15896565]
[1759125726759,12.1173,208.87,208.84,7.46]
[1759125727368,12.1173,208.87,208.82,116.4]
[1759125727574,7.81,208.93,208.86,7.46]
[1759125727763,7.81,208.93,208.86,39.34]
[1759125728069,4.3067,208.9,208.83,18.72040329]
[1759125728259,4.3067,208.9,208.84,123.96]
[1759125728670,7.81,208.87,208.84,7.46]
[1759125729371,4.3068,208.89,208.84,7.46]
[1759125729664,12.1168,208.89,208.83,14.41250329]
[1759125729864,12.1168,208.89,208.83,116.52]
[1759125730061,12.1168,208.89,208.84,7.46]
[1759125730468,12.1168,208.89,208.83,116.52]
[1759125730668,12.1168,208.89,208.83,14.32985203]
[1759125730863,12.1168,208.89,208.84,7.46]
[1759125731068,12.1168,208.89,208.83,123.96]
[1759125732370,12.1168,208.89,208.83,7.46]
[1759125732772,12.1168,208.89,208.83,123.94]
[1759125732967,11.5472,208.88,208.84,7.99]
[1759125733370,11.5472,208.88,208.83,116.48]
[1759125733771,11.5472,208.88,208.83,130.87016175]
[1759125733970,11.5472,208.88,208.84,7.99]
[1759125734972,11.5473,208.87,208.84,7.99]
[1759125737780,7.24,208.86,208.84,7.99]
[1759125739180,4.3073,208.87,208.84,7.99]
[1759125739976,11.5473,208.87,208.84,7.99]
[1759125741281,7.24,208.86,208.84,7.99]
[1759125741970,7.24,208.88,208.83,14.39016175]
[1759125742179,4.3068,208.89,208.84,7.99]
[1759125742479,7.24,208.92,208.84,7.99]
[1759125742777,66.9889,208.91,208.81,0.83320364]
[1759125742979,7.24,208.9,208.82,29.88]
[1759125743376,66.9889,208.91,208.82,65.76]
[1759125743572,4.3075,208.86,208.82,65.76]
[1759125743780,4.3075,208.86,208.83,7.7]
[1759125744483,11.9475,208.86,208.83,7.7]
[1759125744783,11.9475,208.86,208.81,117.21320364]
[1759125744972,11.9475,208.86,208.82,7.7]
[1759125745175,11.9475,208.86,208.83,7.7]
[1759125746780,4.3077,208.85,208.83,7.7]
[1759125746985,4.3077,208.85,208.82,22.29190058]
[1759125747186,7.64,208.84,208.82,7.7]
[1759125747681,11.9479,208.84,208.81,8.53320364]
[1759125747883,74.641,208.88,208.81,7.7]
[1759125748085,67.001,208.88,208.8,116.34]
[1759125748288,1.29109542,208.87,208.8,130.3990293]
[1759125748582,4.3081,208.83,208.8,14.0590293]
[1759125748788,11.9481,208.83,208.8,7.7]
[1759125748987,7.64,208.86,208.8,7.7]
[1759125749484,4.3079,208.84,208.8,7.7]
[1759125749789,11.9479,208.84,208.79,116.36]
[1759125749988,11.9479,208.84,208.8,7.7]
[1759125750188,11.9479,208.84,208.79,116.36]
[1759125750790,4.3081,208.83,208.8,7.7]
[1759125751381,4.3081,208.83,208.79,14.092737]
[1759125751584,4.3081,208.83,208.8,7.7]
[1759125751787,4.3081,208.83,208.79,7.7]
[1759125752090,11.9481,208.83,208.79,7.7]
[1759125752292,11.9481,208.83,208.77,10.15666956]
[1759125752493,4.3081,208.83,208.79,7.7]
[1759125752685,4.3081,208.83,208.78,124.37222085]
[1759125752989,4.3081,208.83,208.79,116.34]
[1759125753392,4.3081,208.83,208.8,7.7]
[1759125753591,11.9481,208.83,208.8,7.7]
[1759125753788,4.3084,208.82,208.8,7.7]
[1759125753993,11.9484,208.82,208.8,7.7]
[1759125754889,11.9484,208.82,208.79,7.7]
[1759125755690,4.3084,208.82,208.78,130.76520758]
[1759125756393,11.9484,208.82,208.79,7.7]